bitfinex/quotes_SOLUSD_20250403
["timestamp","ask_amount","ask_price","bid_price","bid_amount"]
[1743721359996,59.05,116.75,116.71,26.02910041]
[1743721361032,85.07910041,116.75,116.71,26.02910041]
[1743721361208,59.05,116.75,116.71,26.02910041]
[1743721361597,59.05,116.75,116.72,8.5675]
[1743721362115,7.7,116.75,116.72,29.9862]
[1743721362319,7.7,116.75,116.73,26.02910041]
[1743721362521,76.0256567,116.77,116.73,26.02910041]
[1743721362818,83.7256567,116.77,116.73,26.02910041]
[1743721363021,63.7256567,116.77,116.73,26.02910041]
[1743721364015,63.7256567,116.77,116.74,8.566]
[1743721364212,63.29917199,116.77,116.74,8.566]
[1743721365329,7.7,116.77,116.74,56.01020041]
[1743721365899,11.9692492,116.77,116.74,56.01020041]
[1743721366505,4.2692492,116.77,116.74,56.01020041]
[1743721366702,35.28230041,116.78,116.74,56.01020041]
[1743721367727,25.90743401,116.78,116.74,46.63533401]
[1743721368626,385.49,116.81,116.76,16.65423401]
[1743721368921,7.66,116.8,116.76,16.65423401]
[1743721369724,409.80423401,116.81,116.76,16.65423401]
[1743721370222,75.66423401,116.81,116.76,16.65423401]
[1743721370519,75.66423401,116.81,116.77,29.9734]
[1743721371309,16.65423401,116.8,116.77,8.5638]
[1743721371626,20.95622818,116.8,116.77,8.5638]
[1743721376228,92.30622818,116.8,116.75,16.65423401]
[1743721376430,16.65423401,116.79,116.74,25.22023401]
[1743721376726,75.65199417,116.8,116.74,25.22023401]
[1743721376727,88.14639558,116.78,116.74,8.566]
[1743721376913,7.64,116.77,116.74,8.566]
[1743721378025,7.64,116.77,116.74,25.22023401]
[1743721378224,7.64,116.77,116.75,16.65423401]
[1743721380231,58.97,116.79,116.76,8.5645]
[1743721380831,51.35,116.79,116.76,8.5645]
[1743721381034,51.35,116.79,116.76,25.21873401]
[1743721381035,7.62,116.79,116.76,25.21873401]
[1743721381329,24.30199417,116.8,116.77,16.65423401]
[1743721381529,31.92199417,116.8,116.77,16.65423401]
[1743721382129,31.92199417,116.8,116.78,8.5631]
[1743721382733,31.92199417,116.8,116.77,8.5634]
[1743721384011,7.62,116.8,116.77,46.62723401]
[1743721385339,28.49526698,116.8,116.77,8.5634]
[1743721386030,28.49526698,116.8,116.76,8.5645]
[1743721386232,37.05696698,116.8,116.76,8.5645]
[1743721386533,28.49526698,116.8,116.76,8.5645]
[1743721386735,37.05686698,116.8,116.76,8.5645]
[1743721388930,88.14639558,116.79,116.76,8.5645]
[1743721389231,96.70879558,116.79,116.74,25.22023401]
[1743721389625,88.14639558,116.79,116.74,25.22023401]
[1743721390334,88.14639558,116.79,116.74,46.63533401]
[1743721391027,88.00423401,116.79,116.74,46.63533401]
[1743721391328,68.00423401,116.79,116.75,16.65423401]
[1743721391739,68.00423401,116.79,116.74,46.63533401]
[1743721391911,76.56653401,116.79,116.74,46.63533401]
[1743721392529,68.00423401,116.77,116.69,7.8773]
[1743721392833,24.23423401,116.76,116.71,18.64964886]
[1743721393033,32.79893401,116.76,116.72,8.5675]
[1743721393530,24.23423401,116.76,116.72,8.5675]
[1743721394335,24.23423401,116.76,116.72,25.22173401]
[1743721394635,24.23423401,116.76,116.72,8.5675]
[1743721394813,32.79893401,116.76,116.72,8.5675]
[1743721395924,16.65423401,116.75,116.7,46.64503401]
[1743721397121,0.42648471,116.74,116.7,25.22313401]
[1743721397313,17.08071872,116.74,116.7,25.22313401]
[1743721398936,0.42648471,116.74,116.7,25.22313401]
[1743721399620,20.0,116.75,116.71,35.30388287]
[1743721399823,143.58,116.76,116.72,16.65423401]
[1743721400135,143.58,116.76,116.71,18.64964886]
[1743721400335,16.65423401,116.75,116.7,29.9913]
[1743721400643,16.65423401,116.75,116.7,46.64553401]
[1743721400644,36.65423401,116.75,116.7,46.64553401]
[1743721400835,24.23423401,116.76,116.71,35.30388287]
[1743721401019,7.58,116.76,116.72,16.65423401]
[1743721401219,7.58,116.76,116.73,8.5667]
[1743721401542,24.23423401,116.76,116.73,8.5667]
[1743721403442,24.23423401,116.76,116.72,8.5675]
[1743721404243,1.5156,116.77,116.73,35.30388287]
[1743721404419,199.30103297,116.8,116.75,16.65423401]
[1743721404616,79.95526698,116.8,116.75,16.65423401]
[1743721404822,88.51716698,116.8,116.75,16.65423401]
[1743721405043,16.65423401,116.79,116.75,16.65423401]
[1743721405244,16.65423401,116.79,116.73,18.64964886]
[1743721405546,16.65423401,116.79,116.75,8.5653]
[1743721406046,11.86103297,116.8,116.76,16.65423401]
[1743721406235,28.51526698,116.8,116.75,46.63273401]
[1743721407953,11.86103297,116.8,116.76,16.65423401]
[1743721408125,4.22103297,116.8,116.76,16.65423401]
[1743721408325,46.04489558,116.81,116.76,16.65423401]
[1743721408544,54.60589558,116.81,116.76,16.65423401]
[1743721408739,54.60589558,116.81,116.75,46.63273401]
[1743721408740,16.65423401,116.8,116.75,46.63273401]
[1743721409445,24.31423401,116.8,116.75,46.63273401]
[1743721411457,16.65423401,116.78,116.74,8.566]
[1743721413949,28.54676145,116.8,116.75,16.65423401]
[1743721415864,37.10846145,116.8,116.76,8.5645]
[1743721416056,28.54676145,116.8,116.76,8.5645]
[1743721416450,28.54676145,116.8,116.76,25.21873401]
[1743721417465,28.54676145,116.8,116.75,18.64964886]
[1743721417668,11.89252744,116.8,116.76,16.65423401]
[1743721417853,28.54676145,116.8,116.75,18.64964886]
[1743721418048,28.54676145,116.8,116.75,35.30388287]
[1743721418253,11.89252744,116.8,116.76,16.65423401]
[1743721418463,28.54676145,116.8,116.75,18.64964886]
[1743721418666,16.65423401,116.79,116.75,35.30388287]
[1743721418864,37.10846145,116.8,116.75,35.30388287]
[1743721419044,28.54676145,116.8,116.76,16.65423401]
[1743721419469,80.02676145,116.8,116.77,8.5638]
[1743721422172,63.37252744,116.8,116.77,8.5638]
[1743721422470,7.66,116.8,116.77,8.5638]
[1743721422669,7.66,116.8,116.77,25.21803401]
[1743721422871,1.5885,116.81,116.77,25.21803401]
[1743721423052,9.2085,116.81,116.77,25.21803401]
[1743721423866,1.5885,116.81,116.77,25.21803401]
[1743721425049,1.5885,116.81,116.77,46.62763401]
[1743721427053,1.5885,116.81,116.77,25.21803401]
[1743721428180,18.24273401,116.81,116.77,25.21803401]
[1743721428876,1.5885,116.81,116.77,25.21803401]
[1743721429095,16.65423401,116.8,116.76,25.21843401]
[1743721429264,26.80393401,116.81,116.76,25.21843401]
[1743721429571,78.28393401,116.81,116.76,25.21843401]
[1743721430472,53.0685,116.81,116.77,16.65423401]
[1743721432373,1.5273,116.85,116.8,16.65423401]
[1743721432582,13.18844903,116.86,116.84,16.65423401]
[1743721432768,13.18844903,116.86,116.83,16.65423401]
[1743721434172,21.02808471,116.87,116.83,16.65423401]
[1743721434781,29.58458471,116.87,116.83,25.21323401]
[1743721435079,29.58458471,116.87,116.83,8.559]
[1743721436179,29.58458471,116.87,116.82,25.21403401]
[1743721436180,81.06458471,116.87,116.82,25.21403401]
[1743721436377,16.65423401,116.85,116.8,16.65423401]
[1743721437280,16.65423401,116.85,116.81,16.65423401]
[1743721437982,4.3738507,116.87,116.83,16.65423401]
[1743721438282,221.6505,116.88,116.84,16.65423401]
[1743721438283,79.08,116.88,116.84,16.65423401]
[1743721439776,83.43597945,116.88,116.84,16.65423401]
[1743721439981,83.43597945,116.88,116.85,8.5579]
[1743721442455,108.64591346,116.88,116.85,8.5579]
[1743721442877,100.09021346,116.88,116.85,8.5579]
[1743721444276,100.09021346,116.88,116.84,8.5587]
[1743721444786,7.6,116.88,116.85,16.65423401]
[1743721444986,16.65423401,116.91,116.87,16.65423401]
[1743721445294,24.21423401,116.91,116.87,16.65423401]
[1743721445461,24.21423401,116.91,116.86,16.65423401]
[1743721446474,16.65423401,116.9,116.85,35.30388287]
[1743721447586,16.65423401,116.9,116.86,8.5568]
[1743721447883,20.86308784,116.9,116.86,8.5568]
[1743721448071,4.20885383,116.9,116.86,25.21103401]
[1743721448273,75.69423401,116.91,116.86,25.21103401]
[1743721448581,16.65423401,116.9,116.86,46.60413401]
[1743721448781,16.65423401,116.9,116.86,8.5568]
[1743721449086,16.65423401,116.89,116.85,25.21183401]
[1743721449286,71.48,116.9,116.85,25.21183401]
[1743721449287,88.13423401,116.9,116.85,25.21183401]
[1743721449587,95.69423401,116.9,116.85,25.21183401]
[1743721450082,0.42648471,116.89,116.85,25.21183401]
[1743721450260,16.65423401,116.86,116.82,25.21433401]
[1743721450459,24.21423401,116.86,116.82,25.21433401]
[1743721453188,32.77143401,116.86,116.82,25.21433401]
[1743721453373,32.77143401,116.86,116.78,8.5628]
[1743721453374,0.42648471,116.82,116.78,8.5628]
[1743721453574,24.64071872,116.82,116.78,8.5628]
[1743721453774,24.64071872,116.82,116.77,25.21763401]
[1743721453972,16.65423401,116.81,116.77,25.21763401]
[1743721454286,16.65423401,116.81,116.77,8.5634]
[1743721454877,16.65423401,116.81,116.77,25.21763401]
[1743721455600,16.65423401,116.81,116.77,8.5634]
[1743721455799,16.65423401,116.81,116.77,25.21763401]
[1743721456093,33.20151872,116.82,116.77,25.21763401]
[1743721457382,24.64071872,116.82,116.77,25.21763401]
[1743721457786,33.99551607,116.82,116.77,34.57243136]
[1743721458190,42.55561607,116.82,116.77,34.57243136]
[1743721459085,7.98648471,116.82,116.78,26.00903136]
[1743721459284,33.99551607,116.82,116.78,26.00903136]
[1743721459483,33.99551607,116.82,116.79,8.5623]
[1743721460499,33.99551607,116.82,116.78,8.5631]
[1743721461499,33.56903136,116.82,116.78,34.57213136]
[1743721461798,7.56,116.82,116.78,34.57213136]
[1743721462906,26.00903136,116.81,116.78,8.5631]
[1743721463190,7.56,116.82,116.78,34.57213136]
[1743721463399,33.56903136,116.82,116.78,34.57213136]
[1743721464400,42.12933136,116.82,116.78,34.57213136]
[1743721466001,33.56903136,116.82,116.78,34.57213136]
[1743721466596,7.56,116.82,116.78,34.57213136]
[1743721467289,33.56903136,116.82,116.78,34.57213136]
[1743721467496,7.56,116.82,116.78,34.57213136]
[1743721468184,26.00903136,116.86,116.81,26.00903136]
[1743721468386,42.12623136,116.86,116.81,26.00903136]
[1743721468583,26.00903136,116.85,116.81,26.00903136]
[1743721469092,26.43551607,116.84,116.79,26.00903136]
[1743721470096,7.56,116.83,116.79,26.00903136]
[1743721470305,7.56,116.83,116.8,8.5616]
[1743721470692,20.0,116.78,116.73,8.5667]
[1743721470894,33.56903136,116.77,116.73,8.5667]
[1743721471707,33.56903136,116.77,116.73,34.57573136]
[1743721473905,7.56,116.77,116.73,34.57573136]
[1743721475723,33.56903136,116.77,116.73,34.57573136]
[1743721475927,33.56903136,116.77,116.73,8.5667]
[1743721476405,7.56,116.77,116.73,55.99263136]
[1743721476609,7.56,116.77,116.74,26.00903136]
[1743721477099,20.0,116.8,116.75,26.00903136]
[1743721477305,53.56903136,116.8,116.75,26.00903136]
[1743721477533,26.00903136,116.78,116.74,18.64964886]
[1743721477739,16.65547312,116.78,116.74,18.64964886]
[1743721478038,16.65547312,116.79,116.75,8.5653]
[1743721478243,16.65547312,116.79,116.74,8.566]
[1743721478244,16.65547312,116.77,116.74,8.566]
[1743721478546,16.65547312,116.76,116.72,16.65547312]
[1743721478708,24.21547312,116.76,116.72,16.65547312]
[1743721479223,7.56,116.76,116.72,16.65547312]
[1743721479530,7.56,116.76,116.72,25.22297312]
[1743721480228,24.21547312,116.76,116.72,25.22297312]
[1743721480424,24.21547312,116.76,116.72,8.5675]
[1743721481015,24.21547312,116.76,116.72,25.22297312]
[1743721481230,7.56,116.76,116.72,25.22297312]
[1743721482219,7.56,116.76,116.72,46.64167312]
[1743721482628,24.21547312,116.76,116.72,29.9862]
[1743721485618,7.56,116.76,116.72,46.64167312]
[1743721487125,7.56,116.76,116.72,21.4187]
[1743721487326,7.56,116.76,116.72,38.07417312]
[1743721488017,7.56,116.76,116.74,16.65547312]
[1743721488339,20.0,116.78,116.74,16.65547312]
[1743721488636,27.56,116.78,116.74,16.65547312]
[1743721488839,44.21547312,116.78,116.74,16.65547312]
[1743721489133,44.21547312,116.78,116.75,8.5653]
[1743721489625,27.56,116.78,116.75,8.5653]
[1743721490145,27.56,116.78,116.74,16.65547312]
[1743721491011,7.56,116.78,116.74,16.65547312]
[1743721491537,0.28432314,116.79,116.74,16.65547312]
[1743721491729,16.93979626,116.79,116.74,16.65547312]
[1743721491938,7.56,116.78,116.74,16.65547312]
[1743721492657,7.56,116.78,116.75,25.22077312]
[1743721492837,7.56,116.78,116.75,46.63397312]
[1743721496932,7.56,116.78,116.75,29.9785]
[1743721497144,24.21547312,116.78,116.75,8.5653]
[1743721497312,7.56,116.78,116.75,8.5653]
[1743721501024,24.21547312,116.78,116.74,8.566]
[1743721502144,7.56,116.78,116.74,25.22147312]
[1743721502634,7.56,116.78,116.75,16.65547312]
[1743721503033,7.56,116.78,116.76,16.65547312]
[1743721504550,44.21547312,116.8,116.76,16.65547312]
[1743721504948,44.21547312,116.8,116.77,8.5638]
[1743721505251,16.65547312,116.79,116.75,8.5653]
[1743721505426,16.65547312,116.79,116.75,25.22077312]
[1743721505923,44.21547312,116.8,116.76,16.65547312]
[1743721506124,44.21547312,116.8,116.75,46.63397312]
[1743721507844,16.65547312,116.79,116.75,25.22077312]
[1743721508027,16.65547312,116.78,116.75,8.5653]
[1743721508443,27.56,116.8,116.75,8.5653]
[1743721508747,44.21547312,116.8,116.75,25.22077312]
[1743721509151,27.56,116.8,116.77,16.65547312]
[1743721509526,34.2499,116.83,116.78,16.65547312]
[1743721509527,16.65547312,116.83,116.78,16.65547312]
[1743721509737,7.56,116.82,116.78,16.65547312]
[1743721509941,7.56,116.82,116.79,16.65547312]
[1743721510327,7.56,116.82,116.78,16.65547312]
[1743721510850,7.56,116.82,116.79,16.65547312]
[1743721511243,7.56,116.82,116.8,8.5616]
[1743721511545,16.65547312,116.83,116.8,8.5616]
[1743721511845,7.56,116.82,116.8,8.5616]
[1743721513047,7.56,116.82,116.79,8.562]
[1743721513939,36.65547312,116.8,116.73,6.2185]
[1743721514139,36.65547312,116.8,116.75,16.65547312]
[1743721515151,36.65547312,116.8,116.76,16.65547312]
[1743721515340,20.0,116.8,116.76,16.65547312]
[1743721515554,20.0,116.8,116.77,8.5638]
[1743721516262,17.08195783,116.81,116.77,25.21927312]
[1743721516440,44.21547312,116.82,116.77,25.21927312]
[1743721519658,44.21547312,116.82,116.77,46.62887312]
[1743721520647,44.21547312,116.82,116.78,16.65547312]
[1743721521835,44.21547312,116.82,116.77,46.62887312]
[1743721524443,36.65547312,116.82,116.77,46.62887312]
[1743721524645,44.21547312,116.82,116.77,46.62887312]
[1743721524957,36.65547312,116.82,116.77,46.62887312]
[1743721525157,44.21547312,116.82,116.77,46.62887312]
[1743721527059,36.65547312,116.82,116.77,46.62887312]
[1743721527262,44.21547312,116.82,116.77,46.62887312]
[1743721528663,16.65547312,116.8,116.77,8.5638]
[1743721528869,16.65547312,116.79,116.74,18.64964886]
[1743721529043,16.65547312,116.79,116.74,35.30512198]
[1743721529741,16.65547312,116.79,116.75,8.5648]
[1743721530064,25.21797312,116.79,116.75,8.5648]
[1743721530561,17.08195783,116.79,116.75,8.5648]
[1743721531264,16.65547312,116.78,116.75,8.5648]
[1743721532667,24.21547312,116.78,116.75,8.5648]
[1743721534167,0.42648471,116.77,116.72,1.5313]
[1743721534367,16.65547312,116.76,116.72,8.5675]
[1743721534771,17.08195783,116.77,116.73,16.65547312]
[1743721535368,44.21547312,116.78,116.73,16.65547312]
[1743721535868,52.77867312,116.78,116.73,16.65547312]
[1743721536072,44.21547312,116.78,116.73,16.65547312]
[1743721536569,7.56,116.78,116.74,25.22147312]
[1743721536771,7.56,116.78,116.74,46.63657312]
[1743721538368,24.21547312,116.78,116.74,46.63657312]
[1743721540057,7.56,116.78,116.74,46.63657312]
[1743721541470,7.56,116.78,116.74,29.9811]
[1743721541775,24.21547312,116.78,116.74,29.9811]
[1743721542773,16.65547312,116.77,116.69,44.3908]
[1743721542955,16.65547312,116.75,116.71,35.30512198]
[1743721543154,16.65547312,116.75,116.71,18.64964886]
[1743721543355,16.65547312,116.75,116.71,35.30512198]
[1743721543676,16.65547312,116.76,116.71,35.30512198]
[1743721544176,16.65547312,116.76,116.72,8.5675]
[1743721546080,16.65547312,116.75,116.71,25.22337312]
[1743721546282,25.22087312,116.75,116.71,8.5679]
[1743721547080,16.65547312,116.75,116.71,8.5679]
[1743721547679,25.22077312,116.75,116.71,8.5679]
[1743721548284,32.78167312,116.74,116.7,8.5685]
[1743721549084,36.96979272,116.74,116.7,8.5685]
[1743721549593,16.65547312,116.73,116.69,8.5697]
[1743721551881,45.22237312,116.73,116.69,8.5697]
[1743721552095,16.65547312,116.72,116.69,8.5697]
[1743721553492,16.65547312,116.7,116.62,8.1651]
[1743721553692,16.65547312,116.69,116.65,16.65547312]
[1743721553862,7.56,116.7,116.65,16.65547312]
[1743721553863,24.21547312,116.7,116.65,16.65547312]
[1743721554294,24.21547312,116.7,116.66,16.65547312]
[1743721554667,7.56,116.7,116.67,16.65547312]
[1743721554868,24.21547312,116.7,116.64,18.64964886]
[1743721555173,24.21547312,116.7,116.65,16.65547312]
[1743721555789,24.21547312,116.7,116.66,16.65547312]
[1743721556083,7.56,116.7,116.66,35.30512198]
[1743721557186,24.21547312,116.7,116.66,35.30512198]
[1743721558077,7.56,116.7,116.67,8.5711]
[1743721558686,24.21547312,116.7,116.67,8.5711]
[1743721559482,32.78457312,116.7,116.66,8.5718]
[1743721559664,16.65547312,116.69,116.66,8.5718]
[1743721560189,25.22517312,116.69,116.65,8.5726]
[1743721560772,16.65547312,116.69,116.65,8.5726]
[1743721563392,24.21547312,116.7,116.65,25.22807312]
[1743721564293,16.65547312,116.69,116.65,25.22807312]
[1743721564671,32.78447312,116.7,116.65,25.22807312]
[1743721564872,24.21547312,116.7,116.65,25.22807312]
[1743721565294,51.48,116.69,116.65,25.22807312]
[1743721565481,27.58,116.71,116.68,16.65547312]
[1743721565688,27.58,116.71,116.67,16.65547312]
[1743721565887,44.23547312,116.71,116.66,35.30512198]
[1743721566193,52.80377312,116.71,116.66,16.65547312]
[1743721566376,52.80377312,116.71,116.67,8.5711]
[1743721566578,44.23547312,116.71,116.67,8.5711]
[1743721567896,52.80377312,116.71,116.67,8.5711]
[1743721568198,44.23547312,116.71,116.67,8.5711]
[1743721568704,16.65547312,116.7,116.67,8.5711]
[1743721569585,52.80387312,116.71,116.67,8.5711]
[1743721569897,36.65547312,116.71,116.67,8.5711]
[1743721570075,44.23547312,116.71,116.67,8.5711]
[1743721570274,27.58,116.71,116.67,25.22657312]
[1743721570485,20.0,116.69,116.65,8.5726]
[1743721570687,20.0,116.69,116.65,25.22807312]
[1743721571374,36.65547312,116.69,116.65,25.22807312]
[1743721571794,36.65547312,116.69,116.65,8.5726]
[1743721572682,25.65145783,116.7,116.65,8.5726]
[1743721572980,25.65145783,116.7,116.65,25.22807312]
[1743721573387,25.65145783,116.7,116.64,46.66127312]
[1743721574805,25.65145783,116.7,116.66,8.5719]
[1743721575006,17.08195783,116.7,116.66,8.5719]
[1743721575708,25.65095783,116.7,116.66,8.5719]
[1743721578888,16.65547312,116.7,116.66,8.5719]
[1743721580510,58.82337312,116.71,116.66,8.5719]
[1743721581015,42.1679,116.71,116.66,8.5719]
[1743721581203,58.82307312,116.71,116.66,16.65547312]
[1743721581384,58.82307312,116.71,116.65,38.08627312]
[1743721582306,58.82307312,116.71,116.65,46.65887312]
[1743721582989,16.65547312,116.7,116.65,46.65887312]
[1743721585790,58.82307312,116.71,116.65,46.65887312]
[1743721587413,50.25477312,116.71,116.66,16.65547312]
[1743721587604,44.23547312,116.71,116.66,16.65547312]
[1743721588098,20.0,116.71,116.67,16.65547312]
[1743721588304,20.0,116.71,116.66,35.30512198]
[1743721589418,34.74865783,116.72,116.68,8.5704]
[1743721589619,16.65547312,116.71,116.68,8.5704]
[1743721590313,37.08195783,116.7,116.64,43.87842198]
[1743721590621,37.08195783,116.7,116.65,16.65547312]
[1743721591815,37.08195783,116.7,116.66,8.5719]
[1743721592119,45.65105783,116.7,116.66,8.5719]
[1743721592306,28.99558471,116.7,116.66,8.5719]
[1743721592505,45.65105783,116.7,116.66,8.5719]
[1743721595022,45.65105783,116.7,116.66,8.5719]
[1743721604309,20.42648471,116.7,116.66,8.5719]
[1743721604510,20.42648471,116.7,116.66,25.22737312]
[1743721604738,20.0,116.7,116.66,25.22737312]
[1743721605217,20.0,116.7,116.67,16.65547312]
[1743721606028,20.0,116.7,116.66,16.65547312]
[1743721608022,16.65547312,116.7,116.67,8.5711]
[1743721608228,16.65547312,116.69,116.63,18.64964886]
[1743721608432,16.65547312,116.69,116.64,16.65547312]
[1743721609131,16.65547312,116.69,116.65,8.5726]
[1743721610521,16.65547312,116.69,116.65,25.22807312]
[1743721611223,45.65125783,116.7,116.65,25.22807312]
[1743721611827,24.23547312,116.71,116.66,16.65547312]
[1743721612134,32.80387312,116.71,116.66,16.65547312]
[1743721612331,16.65547312,116.68,116.65,8.5726]
[1743721612518,20.0,116.69,116.65,8.5726]
[1743721612724,20.0,116.69,116.65,25.22807312]
[1743721613339,77.13115783,116.7,116.65,25.22807312]
[1743721613938,163.56,116.71,116.68,16.65547312]
[1743721614116,27.56,116.71,116.67,16.65547312]
[1743721614515,40.74844903,116.71,116.67,16.65547312]
[1743721615238,40.74844903,116.71,116.68,8.5704]
[1743721616537,27.56,116.71,116.68,8.5704]
[1743721619516,27.56,116.71,116.67,16.65547312]
[1743721619715,44.21547312,116.71,116.67,16.65547312]
[1743721619926,17.08195783,116.7,116.66,8.5719]
[1743721622442,25.65115783,116.7,116.66,8.5719]
[1743721624033,17.08195783,116.7,116.66,8.5719]
[1743721624237,25.65105783,116.7,116.66,8.5719]
[1743721624837,17.08195783,116.7,116.66,8.5719]
[1743721625139,0.42648471,116.7,116.66,25.22737312]
[1743721625337,27.56,116.71,116.66,25.22737312]
[1743721625847,27.56,116.71,116.66,46.65707312]
[1743721626652,36.1283,116.71,116.66,46.65707312]
[1743721626821,52.78377312,116.71,116.66,46.65707312]
[1743721627141,17.08195783,116.7,116.66,8.5719]
[1743721627343,44.21547312,116.71,116.66,25.22737312]
[1743721627725,44.21547312,116.71,116.66,46.65707312]
[1743721628133,52.78367312,116.71,116.66,46.65707312]
[1743721628444,52.78367312,116.71,116.66,25.22737312]
[1743721628618,16.65547312,116.7,116.66,8.5719]
[1743721630045,25.22457312,116.7,116.66,8.5719]
[1743721630348,16.79763469,116.68,116.65,8.5723]
[1743721630520,24.21547312,116.67,116.64,8.5729]
[1743721630849,17.08195783,116.66,116.62,8.5744]
[1743721631352,16.65547312,116.65,116.62,8.5744]
[1743721633349,16.65547312,116.65,116.59,7.8885]
[1743721633350,16.65547312,116.63,116.59,7.8885]
[1743721633548,24.21547312,116.63,116.59,8.5767]
[1743721634842,7.56,116.63,116.59,25.23217312]
[1743721635551,7.56,116.63,116.57,18.64964886]
[1743721635552,24.21547312,116.63,116.58,25.23327312]
[1743721636942,24.21547312,116.63,116.6,8.5763]
[1743721637454,7.56,116.63,116.6,8.5763]
[1743721639364,36.65547312,116.64,116.6,8.5763]
[1743721639661,7.56,116.63,116.6,8.5763]
[1743721640664,16.65547312,116.62,116.58,8.5778]
[1743721640968,9.1083,116.63,116.59,16.65547312]
[1743721641674,7.56,116.63,116.6,25.23177312]
[1743721641962,7.56,116.63,116.6,8.5763]
[1743721642256,7.56,116.65,116.62,16.65547312]
[1743721642445,7.56,116.65,116.61,16.65547312]
[1743721643058,46.77567312,116.66,116.61,16.65547312]
[1743721643263,7.56,116.65,116.61,16.65547312]
[1743721643460,7.56,116.65,116.62,8.5748]
[1743721644765,24.21547312,116.65,116.62,8.5748]
[1743721645566,7.56,116.65,116.62,8.5748]
[1743721646176,18.20377312,116.66,116.62,25.23027312]
[1743721646468,7.56,116.66,116.63,16.65547312]
[1743721646764,7.56,116.68,116.64,16.65547312]
[1743721647378,24.21547312,116.68,116.64,16.65547312]
[1743721647554,7.56,116.68,116.64,16.65547312]
[1743721647761,7.56,116.68,116.65,8.5726]
[1743721647944,20.0,116.7,116.66,16.65547312]
[1743721648152,24.21547312,116.7,116.66,16.65547312]
[1743721648581,16.65547312,116.69,116.65,8.5726]
[1743721649079,16.65547312,116.68,116.64,8.573]
[1743721650879,7.56,116.67,116.64,8.573]
[1743721651253,7.56,116.67,116.65,16.65547312]
[1743721651566,52.78447312,116.7,116.65,35.30512198]
[1743721652288,52.78447312,116.7,116.65,16.65547312]
[1743721652451,52.78447312,116.7,116.66,8.5719]
[1743721653407,44.21547312,116.7,116.66,8.5719]
[1743721653572,7.56,116.7,116.66,25.22737312]
[1743721653770,24.21547312,116.7,116.66,25.22737312]
[1743721654900,75.69547312,116.7,116.66,25.22737312]
[1743721656198,84.26447312,116.7,116.66,8.5719]
[1743721657096,16.65547312,116.69,116.65,8.5723]
[1743721657302,16.65547312,116.69,116.64,16.65547312]
[1743721657487,68.13547312,116.69,116.64,25.22857312]
[1743721657978,76.70537312,116.69,116.64,25.22857312]
[1743721658315,60.0499,116.69,116.65,16.65547312]
[1743721659111,44.21547312,116.7,116.67,16.65547312]
[1743721659112,7.56,116.7,116.67,16.65547312]
[1743721659410,7.56,116.7,116.66,16.65547312]
[1743721659576,16.1291,116.7,116.66,16.65547312]
[1743721660003,7.56,116.7,116.67,16.65547312]
[1743721660799,7.56,116.7,116.66,25.22677312]
[1743721661317,16.129,116.7,116.66,8.5713]
[1743721661494,32.78447312,116.7,116.66,8.5713]
[1743721662109,32.78447312,116.7,116.66,25.22677312]
[1743721662618,32.78447312,116.7,116.66,16.65547312]
[1743721662818,32.78447312,116.7,116.65,43.87732198]
[1743721664918,32.78447312,116.7,116.65,25.22767312]
[1743721665120,37.08195783,116.69,116.64,16.65547312]
[1743721666921,37.08195783,116.69,116.6,29.3455]
[1743721666922,16.65547312,116.67,116.6,29.3455]
[1743721667124,16.1319,116.66,116.62,35.30512198]
[1743721669012,16.1319,116.66,116.62,43.87972198]
[1743721670030,8.5719,116.66,116.62,43.87972198]
[1743721670230,16.1319,116.66,116.62,43.87972198]
[1743721671605,16.1319,116.66,116.62,25.23007312]
[1743721673230,16.1319,116.66,116.62,8.5746]
[1743721673434,16.1319,116.66,116.62,25.23007312]
[1743721674632,16.1319,116.66,116.63,25.22947312]
[1743721675218,16.1319,116.66,116.63,16.65547312]
[1743721675445,16.1319,116.66,116.62,16.65547312]
[1743721675736,32.78737312,116.66,116.61,43.88022198]
[1743721676332,16.1319,116.66,116.62,16.65547312]
[1743721676834,16.1319,116.66,116.62,25.22997312]
[1743721679541,67.6119,116.66,116.62,25.22997312]
[1743721680543,67.6119,116.66,116.62,16.65547312]
[1743721680830,67.6119,116.66,116.61,43.88022198]
[1743721682139,67.6119,116.66,116.62,25.23017312]
[1743721682315,84.26737312,116.66,116.61,25.23057312]
[1743721683645,67.6119,116.66,116.61,25.23057312]